fUST/lending_fUST_20240323
["ID","MTS","AMOUNT","RATE_DAILY","PERIOD"]
[320087041,1711144243923,-670.91,0.00026301,2]
[320087042,1711144243932,-500.0,0.00026301,2]
[320087043,1711144243942,-151.0,0.00026301,2]
[320087044,1711144243951,-500.0,0.00026301,2]
[320087045,1711144243960,-306.0,0.00026301,2]
[320087046,1711144243969,-153.0,0.00026493,2]
[320087047,1711144243979,-306.0,0.00026603,2]
[320087048,1711144243988,-153.0,0.00026603,2]
[320087049,1711144243997,-153.0,0.00026603,2]
[320087050,1711144244008,-269.5616968,0.00026641,2]
[320087051,1711144244017,-205.13492374,0.00026847,2]
[320087052,1711144244026,-954.39823141,0.00026847,2]
[320087053,1711144244035,-215.95897564,0.00026847,2]
[320087055,1711144244043,-275.34632078,0.00026847,2]
[320087057,1711144244052,-224.17791887,0.00026847,2]
[320087059,1711144244062,-617.12366123,0.00026848,2]
[320087061,1711144244071,-17188.6,0.00026848,2]
[320087063,1711144244080,-500.0,0.00026848,2]
[320087065,1711144244089,-596.27,0.00026849,2]
[320087067,1711144244099,-500.0,0.00026849,2]
[320087069,1711144244111,-500.0,0.00026849,2]
[320087071,1711144244120,-500.0,0.00026849,2]
[320087073,1711144244130,-500.0,0.00026849,2]
[320087075,1711144244138,-500.0,0.00026849,2]
[320087077,1711144244148,-530.23,0.00026849,2]
[320087079,1711144244157,-500.0,0.00026849,2]
[320087081,1711144244167,-1283.19,0.00026849,2]
[320087083,1711144244176,-500.0,0.00026849,2]
[320087085,1711144244186,-500.0,0.00026849,2]
[320087087,1711144244195,-704.53,0.00026849,2]
[320087089,1711144244204,-680.65,0.00026849,2]
[320087091,1711144244213,-500.0,0.00026849,2]
[320087093,1711144244222,-500.0,0.00026849,2]
[320087095,1711144244231,-2280.23,0.00026849,2]
[320087097,1711144244240,-1002.99,0.00026849,2]
[320087099,1711144244250,-594.33595288,0.00026849,2]
[320087101,1711144244261,-993.98,0.00026849,2]
[320087103,1711144244270,-468.0,0.00026849,2]
[320087105,1711144244279,-500.0,0.00026849,2]
[320087107,1711144244289,-500.0,0.00026849,2]
[320087109,1711144244298,-500.0,0.00026849,2]
[320087111,1711144244307,-672.01,0.00026849,2]
[320087113,1711144244317,-500.0,0.00026849,2]
[320087115,1711144244326,-500.0,0.00026849,2]
[320087117,1711144244335,-184.246111,0.00026849,2]
[320087119,1711144244344,-184.246111,0.00026849,2]
[320087121,1711144244354,-151.0,0.00026849,2]
[320087123,1711144244363,-500.0,0.00026849,2]
[320087125,1711144244372,-500.0,0.00026849,2]
[320087127,1711144244381,-500.0,0.00026849,2]
[320087129,1711144244390,-1212.56,0.00026849,2]
[320087131,1711144244400,-424.26912866,0.00026849,2]
[320087133,1711144244410,-151.0,0.00026849,2]
[320087135,1711144244419,-500.0,0.00026849,2]
[320087137,1711144244428,-151.0,0.00026849,2]
[320087139,1711144244438,-287.104007,0.00026849,2]
[320087141,1711144244447,-500.0,0.00026849,2]
[320087143,1711144244456,-500.0,0.00026849,2]
[320087145,1711144244465,-500.0,0.00026849,2]
[320087147,1711144244474,-1551.37,0.00026849,2]
[320087149,1711144244483,-1440.78,0.00026849,2]
[320087151,1711144244492,-525.59,0.00026849,2]
[320087153,1711144244500,-2173.92,0.00026849,2]
[320087155,1711144244514,-500.0,0.00026849,2]
[320087157,1711144244523,-21497.31,0.00026849,2]
[320087159,1711144244532,-1094.59,0.00026849,2]
[320087161,1711144244542,-1241.89,0.00026849,2]
[320087163,1711144244551,-2994.39,0.00026849,2]
[320087165,1711144244561,-613.7,0.00026849,2]
[320087167,1711144244571,-1606.19,0.00026849,2]
[320087170,1711144244581,-500.0,0.00026849,2]
[320087171,1711144244590,-15046.81,0.00026849,2]
[320087173,1711144244601,-500.0,0.00026849,2]
[320087175,1711144244611,-500.0,0.00026849,2]
[320087177,1711144244620,-500.0,0.00026849,2]
[320087180,1711144244630,-571.2,0.00026849,2]
[320087181,1711144244638,-500.0,0.00026849,2]
[320087183,1711144244647,-500.0,0.00026849,2]
[320087185,1711144244656,-151.0,0.00026849,2]
[320087187,1711144244665,-500.0,0.00026849,2]
[320087189,1711144244674,-1478.73,0.00026849,2]
[320087191,1711144244683,-1810.12,0.00026849,2]
[320087193,1711144244692,-500.0,0.00026849,2]
[320087195,1711144244701,-1266.16,0.00026849,2]
[320087197,1711144244711,-500.0,0.00026849,2]
[320087199,1711144244719,-500.0,0.00026849,2]
[320087201,1711144244728,-19780.49,0.00026849,2]
[320087203,1711144244738,-151.0,0.00026849,2]
[320087205,1711144244746,-500.0,0.00026849,2]
[320087208,1711144244757,-848.29,0.00026849,2]
[320087209,1711144244766,-1732.03,0.00026849,2]
[320087211,1711144244775,-500.0,0.00026849,2]
[320087213,1711144244785,-3264.47473201,0.00026849,2]
[320087228,1711144244905,-797.16526799,0.00026849,2]
[320087230,1711144244914,-1178.17032808,0.00026849,2]
[320087232,1711144244926,-1782.51967192,0.00026849,2]
[320087234,1711144244935,-500.0,0.00026849,2]
[320087236,1711144244944,-500.0,0.00026849,2]
[320087238,1711144244954,-1259.58,0.00026849,2]
[320087240,1711144244963,-500.0,0.00026849,2]
[320087242,1711144244973,-925.67,0.00026849,2]
[320087244,1711144244983,-831.90290188,0.00026849,2]
[320088253,1711144454352,26420.484216,0.0002561,60]
[320088256,1711144470646,222.15,0.00012,7]
[320088300,1711145432447,-155.0341075,0.00022358,2]
[320088301,1711145432456,-155.0341075,0.00022359,2]
[320088302,1711145432467,-174.289409,0.0002236,2]
[320088303,1711145432478,-24900.0,0.00023029,2]
[320088304,1711145432488,-170.941398,0.00023064,2]
[320088306,1711145432499,-181.543139,0.00023158,2]
[320088307,1711145432510,-651.05197323,0.0002351,2]
[320088308,1711145432521,-178.7350892,0.00024423,2]
[320088309,1711145432532,-7024.50061931,0.00024555,2]
[320088311,1711145432542,-475.91288606,0.00024557,2]
[320088312,1711145432552,-876.88094129,0.00024655,2]
[320088313,1711145432562,-685.47138469,0.00024655,2]
[320088314,1711145432573,-487.92325292,0.00024655,2]
[320088315,1711145432584,-207.07464031,0.00024655,2]
[320088316,1711145432594,-155.05737123,0.00024656,2]
[320088317,1711145432605,-1476.92381232,0.00024656,2]
[320088318,1711145432615,-500.0,0.00024657,2]
[320088319,1711145432625,-500.0,0.00024657,2]
[320088320,1711145432635,-500.0,0.00024657,2]
[320088321,1711145432645,-500.0,0.00024657,2]
[320088322,1711145432654,-500.0,0.00024657,2]
[320088323,1711145432664,-500.0,0.00024657,2]
[320088324,1711145432674,-500.0,0.00024657,2]
[320088325,1711145432684,-500.0,0.00024657,2]
[320088326,1711145432694,-500.0,0.00024657,2]
[320088327,1711145432704,-500.0,0.00024657,2]
[320088328,1711145432714,-615.78,0.00024657,2]
[320088329,1711145432725,-1113.71,0.00024657,2]
[320088330,1711145432735,-500.0,0.00024657,2]
[320088331,1711145432746,-500.0,0.00024657,2]
[320088332,1711145432756,-500.0,0.00024657,2]
[320088333,1711145432765,-500.0,0.00024657,2]
[320088334,1711145432775,-451.63017508,0.00024657,2]
[320088335,1711145432786,-500.0,0.00024657,2]
[320088336,1711145432796,-500.0,0.00024657,2]
[320088337,1711145432806,-616.46,0.00024657,2]
[320088338,1711145432815,-500.0,0.00024657,2]
[320088339,1711145432825,-877.61,0.00024657,2]
[320088340,1711145432835,-869.73,0.00024657,2]
[320088341,1711145432845,-500.0,0.00024657,2]
[320088342,1711145432854,-500.0,0.00024657,2]
[320088343,1711145432864,-595.57,0.00024657,2]
[320088344,1711145432874,-577.95244467,0.00024657,2]
[320088345,1711145432885,-2093.67,0.00024657,2]
[320088346,1711145432898,-500.0,0.00024657,2]
[320088347,1711145432907,-500.0,0.00024657,2]
[320088348,1711145432917,-500.0,0.00024657,2]
[320088349,1711145432927,-500.0,0.00024657,2]
[320088350,1711145432937,-500.0,0.00024657,2]
[320088351,1711145432958,-500.0,0.00024657,2]
[320088352,1711145432969,-500.0,0.00024657,2]
[320088353,1711145432979,-500.0,0.00024657,2]
[320088354,1711145432989,-500.0,0.00024657,2]
[320088355,1711145433000,-500.0,0.00024657,2]
[320088356,1711145433009,-500.0,0.00024657,2]
[320088357,1711145433019,-500.0,0.00024657,2]
[320088358,1711145433029,-500.0,0.00024657,2]
[320088359,1711145433039,-500.0,0.00024657,2]
[320088360,1711145433050,-500.0,0.00024657,2]
[320088361,1711145433060,-520.27,0.00024657,2]
[320088362,1711145433070,-500.0,0.00024657,2]
[320088363,1711145433080,-500.0,0.00024657,2]
[320088364,1711145433090,-500.0,0.00024657,2]
[320088365,1711145433102,-347.26720316,0.00024657,2]
[320088366,1711145433112,-398.62431868,0.00024657,2]
[320088367,1711145433123,-500.0,0.00024657,2]
[320088368,1711145433134,-500.0,0.00024657,2]
[320088369,1711145433144,-1357.45,0.00024657,2]
[320088370,1711145433154,-374.32073972,0.00024657,2]
[320088371,1711145433164,-279.05807573,0.00024657,2]
[320088372,1711145433173,-275.00496633,0.00024657,2]
[320088421,1711145438424,-224.99503367,0.00024657,2]
[320088423,1711145438433,-1260.68,0.00024657,2]
[320088425,1711145438442,-500.0,0.00024657,2]
[320088427,1711145438453,-6241.48,0.00024657,2]
[320088429,1711145438463,-521.74,0.00024657,2]
[320088431,1711145438472,-18810.15,0.00024657,2]
[320088433,1711145438481,-500.0,0.00024657,2]
[320088435,1711145438490,-500.0,0.00024657,2]
[320088437,1711145438501,-540.37427772,0.00024657,2]
[320088439,1711145438510,-1086.66,0.00024657,2]
[320088441,1711145438519,-500.0,0.00024657,2]
[320088444,1711145438529,-1902.18,0.00024657,2]
[320088447,1711145438538,-500.0,0.00024657,2]
[320088450,1711145438547,-500.0,0.00024657,2]
[320088453,1711145438556,-500.0,0.00024657,2]
[320088455,1711145438565,-1397.92,0.00024657,2]
[320088457,1711145438575,-500.0,0.00024657,2]
[320088459,1711145438584,-1786.8,0.00024657,2]
[320088461,1711145438593,-536.99,0.00024657,2]
[320088463,1711145438603,-957.76,0.00024657,2]
[320088465,1711145438612,-500.0,0.00024657,2]
[320088467,1711145438621,-500.0,0.00024657,2]
[320088469,1711145438631,-1583.85,0.00024657,2]
[320088470,1711145438640,-500.0,0.00024657,2]
[320088472,1711145438649,-500.0,0.00024657,2]
[320088473,1711145438659,-13165.96,0.00024657,2]
[320088474,1711145438668,-2620.09,0.00024657,2]
[320088475,1711145438678,-500.0,0.00024657,2]
[320088476,1711145438687,-500.0,0.00024657,2]
[320088478,1711145438696,-500.0,0.00024657,2]
[320088479,1711145438705,-1405.42,0.00024657,2]
[320088480,1711145438715,-246.28499172,0.00024657,2]
[320088481,1711145438724,-479.46742238,0.00024657,2]
[320088482,1711145438733,-500.0,0.00024657,2]
[320088483,1711145438742,-500.0,0.00024657,2]
[320088484,1711145438752,-500.0,0.00024657,2]
[320088485,1711145438761,-500.0,0.00024657,2]
[320088486,1711145438769,-15756.22,0.00024657,2]
[320088487,1711145438778,-500.0,0.00024657,2]
[320088488,1711145438787,-18132.12,0.00024657,2]
[320088489,1711145438796,-500.0,0.00024657,2]
[320088491,1711145438806,-500.0,0.00024657,2]
[320088492,1711145438815,-500.0,0.00024657,2]
[320088493,1711145438824,-500.0,0.00024657,2]
[320088494,1711145438833,-500.0,0.00024657,2]
[320088496,1711145438843,-500.0,0.00024657,2]
[320088498,1711145438852,-500.0,0.00024657,2]
[320088500,1711145438861,-1587.69,0.00024657,2]
[320088502,1711145438870,-3723.17,0.00024657,2]
[320088504,1711145438880,-1160.65,0.00024657,2]
[320088506,1711145438890,-777.6,0.00024657,2]
[320088508,1711145438900,-500.0,0.00024657,2]
[320088509,1711145438909,-2713.96,0.00024657,2]
[320088511,1711145438919,-464.59735309,0.00024657,2]
[320088512,1711145438928,-500.0,0.00024657,2]
[320088513,1711145438938,-500.0,0.00024657,2]
[320088514,1711145438947,-500.0,0.00024657,2]
[320088515,1711145438956,-500.0,0.00024657,2]
[320088516,1711145438965,-500.0,0.00024657,2]
[320088517,1711145438976,-500.0,0.00024657,2]
[320088518,1711145438986,-500.0,0.00024657,2]
[320088519,1711145438996,-1154.62,0.00024657,2]
[320088520,1711145439006,-500.0,0.00024657,2]
[320088521,1711145439015,-642.96,0.00024657,2]
[320088522,1711145439024,-3231.54,0.00024657,2]
[320088523,1711145439034,-1176.26,0.00024657,2]
[320088524,1711145439043,-500.0,0.00024657,2]
[320088525,1711145439052,-500.0,0.00024657,2]
[320088526,1711145439062,-1289.75,0.00024657,2]
[320088527,1711145439071,-500.0,0.00024657,2]
[320088528,1711145439080,-848.53,0.00024657,2]
[320088529,1711145439089,-1148.0,0.00024657,2]
[320088530,1711145439098,-20854.77,0.00024657,2]
[320088531,1711145439107,-153.0,0.000248,2]
[320088532,1711145439117,-475.91288602,0.00024831,2]
[320088533,1711145439126,-475.91288602,0.00025105,2]
[320088534,1711145439135,-500.0,0.00025205,2]
[320088535,1711145439144,-500.0,0.00025205,2]
[320088536,1711145439153,-500.0,0.00025205,2]
[320088537,1711145439162,-500.0,0.00025205,2]
[320088538,1711145439171,-500.0,0.00025205,2]
[320088539,1711145439331,-500.0,0.00025205,2]
[320088540,1711145439340,-500.0,0.00025205,2]
[320088541,1711145439351,-500.0,0.00025205,2]
[320088542,1711145439360,-362.36989471,0.00025205,2]
[320088543,1711145439369,-615.78,0.00025205,2]
[320088544,1711145439378,-1113.71,0.00025205,2]
[320088545,1711145439387,-500.0,0.00025205,2]
[320088546,1711145439397,-471.19100394,0.00025205,2]
[320088547,1711145439406,-500.0,0.00025205,2]
[320088548,1711145439416,-500.0,0.00025205,2]
[320088549,1711145439427,-500.0,0.00025205,2]
[320088550,1711145439437,-616.46,0.00025205,2]
[320088551,1711145439446,-877.61,0.00025205,2]
[320088552,1711145439455,-869.73,0.00025205,2]
[320088553,1711145439465,-500.0,0.00025205,2]
[320088554,1711145439474,-500.0,0.00025205,2]
[320088555,1711145439485,-595.57,0.00025205,2]
[320088556,1711145439497,-2093.67,0.00025205,2]
[320088557,1711145439506,-500.0,0.00025205,2]
[320088558,1711145439515,-500.0,0.00025205,2]
[320088559,1711145439524,-500.0,0.00025205,2]
[320088560,1711145439533,-500.0,0.00025205,2]
[320088561,1711145439542,-500.0,0.00025205,2]
[320088562,1711145439551,-500.0,0.00025205,2]
[320088563,1711145439561,-500.0,0.00025205,2]
[320088564,1711145439570,-209.72640167,0.00025205,2]
[320088565,1711145439580,-500.0,0.00025205,2]
[320088566,1711145439588,-500.0,0.00025205,2]
[320088567,1711145439598,-520.27,0.00025205,2]
[320088568,1711145439607,-500.0,0.00025205,2]
[320088569,1711145439616,-500.0,0.00025205,2]
[320088570,1711145439625,-500.0,0.00025205,2]
[320088571,1711145439634,-500.0,0.00025205,2]
[320088572,1711145439643,-500.0,0.00025205,2]
[320088573,1711145439653,-1357.45,0.00025205,2]
[320088574,1711145439662,-500.0,0.00025205,2]
[320088575,1711145439671,-1260.68,0.00025205,2]
[320088576,1711145439680,-500.0,0.00025205,2]
[320088577,1711145439689,-6241.48,0.00025205,2]
[320088578,1711145439699,-521.74,0.00025205,2]
[320088579,1711145439708,-18810.15,0.00025205,2]
[320088580,1711145439716,-500.0,0.00025205,2]
[320088581,1711145439725,-500.0,0.00025205,2]
[320088582,1711145439735,-1086.66,0.00025205,2]
[320088583,1711145439746,-500.0,0.00025205,2]
[320088584,1711145439755,-1902.18,0.00025205,2]
[320088585,1711145439763,-584.32890636,0.00025205,2]
[320088586,1711145439772,-500.0,0.00025205,2]
[320088587,1711145439781,-500.0,0.00025205,2]
[320088588,1711145439790,-1397.92,0.00025205,2]
[320088589,1711145439799,-500.0,0.00025205,2]
[320088590,1711145439808,-1786.8,0.00025205,2]
[320088591,1711145439817,-536.99,0.00025205,2]
[320088592,1711145439826,-957.76,0.00025205,2]
[320088593,1711145439835,-500.0,0.00025205,2]
[320088594,1711145439844,-500.0,0.00025205,2]
[320088595,1711145439853,-1583.85,0.00025205,2]
[320088596,1711145439862,-500.0,0.00025205,2]
[320088597,1711145439871,-500.0,0.00025205,2]
[320088598,1711145439880,-13165.96,0.00025205,2]
[320088599,1711145439890,-2620.09,0.00025205,2]
[320088600,1711145439901,-366.92651925,0.00025205,2]
[320088601,1711145439910,-500.0,0.00025205,2]
[320088602,1711145439919,-1405.42,0.00025205,2]
[320088603,1711145439928,-500.0,0.00025205,2]
[320088604,1711145439938,-15756.22,0.00025205,2]
[320088605,1711145439947,-18132.12,0.00025205,2]
[320088606,1711145439957,-500.0,0.00025205,2]
[320088607,1711145439966,-500.0,0.00025205,2]
[320088608,1711145439975,-500.0,0.00025205,2]
[320088609,1711145439985,-500.0,0.00025205,2]
[320088610,1711145439997,-500.0,0.00025205,2]
[320088611,1711145440006,-1587.69,0.00025205,2]
[320088612,1711145440015,-3723.17,0.00025205,2]
[320088614,1711145440024,-1160.65,0.00025205,2]
[320088615,1711145440033,-777.6,0.00025205,2]
[320088617,1711145440042,-500.0,0.00025205,2]
[320088619,1711145440052,-2713.96,0.00025205,2]
[320088621,1711145440062,-500.0,0.00025205,2]
[320088622,1711145440071,-500.0,0.00025205,2]
[320088623,1711145440081,-500.0,0.00025205,2]
[320088624,1711145440090,-580.19519692,0.00025205,2]
[320088625,1711145440099,-500.0,0.00025205,2]
[320088626,1711145440108,-500.0,0.00025205,2]
[320088627,1711145440117,-1154.62,0.00025205,2]
[320088628,1711145440127,-500.0,0.00025205,2]
[320088629,1711145440135,-642.96,0.00025205,2]
[320088631,1711145440144,-3231.54,0.00025205,2]
[320088633,1711145440154,-1176.26,0.00025205,2]
[320088634,1711145440163,-297.11841611,0.00025205,2]
[320088635,1711145440172,-500.0,0.00025205,2]
[320088636,1711145440181,-1289.75,0.00025205,2]
[320088637,1711145440190,-500.0,0.00025205,2]
[320088639,1711145440200,-848.53,0.00025205,2]
[320088640,1711145440209,-1148.0,0.00025205,2]
[320088641,1711145440219,-289.2649314,0.00025205,2]
[320088642,1711145440228,-153.0,0.00025256,2]
[320088643,1711145440240,-475.91288602,0.00025379,2]
[320088644,1711145440251,-46380.54871695,0.00025471,2]
[320088645,1711145440260,-194.35359503,0.0002556,2]
[320088647,1711145440270,-735.2862035,0.0002561,2]
[320088649,1711145440279,-151.80276999,0.00025611,2]
[320088650,1711145440288,-475.91288602,0.00025653,2]
[320088652,1711145440297,-309.94894713,0.00025752,2]
[320088653,1711145440306,-431.93219818,0.00025752,2]
[320088655,1711145440315,-7854.14035029,0.00025752,2]
[320088656,1711145440324,-281.56254263,0.00025753,2]
[320088657,1711145440333,-500.0,0.00025753,2]
[320088658,1711145440342,-500.0,0.00025753,2]
[320088659,1711145440351,-500.0,0.00025753,2]
[320088660,1711145440360,-500.0,0.00025753,2]
[320088661,1711145440369,-500.0,0.00025753,2]
[320088662,1711145440378,-567.30309527,0.00025753,2]
[320088663,1711145440387,-615.78,0.00025753,2]
[320088664,1711145440397,-1113.71,0.00025753,2]
[320088665,1711145440406,-500.0,0.00025753,2]
[320088666,1711145440415,-500.0,0.00025753,2]
[320088667,1711145440425,-500.0,0.00025753,2]
[320088669,1711145440434,-616.46,0.00025753,2]
[320088671,1711145440443,-877.61,0.00025753,2]
[320088673,1711145440451,-869.73,0.00025753,2]
[320088674,1711145440460,-500.0,0.00025753,2]
[320088676,1711145440472,-512.10467803,0.00025753,2]
[320088677,1711145440481,-595.57,0.00025753,2]
[320088678,1711145440490,-2093.67,0.00025753,2]
[320088679,1711145440501,-500.0,0.00025753,2]
[320088680,1711145440510,-500.0,0.00025753,2]
[320088681,1711145440519,-500.0,0.00025753,2]
[320088682,1711145440528,-500.0,0.00025753,2]
[320088683,1711145440537,-500.0,0.00025753,2]
[320088684,1711145440546,-500.0,0.00025753,2]
[320088685,1711145440555,-500.0,0.00025753,2]
[320088686,1711145440565,-500.0,0.00025753,2]
[320088687,1711145440574,-500.0,0.00025753,2]
[320088688,1711145440583,-520.27,0.00025753,2]
[320088689,1711145440592,-500.0,0.00025753,2]
[320088690,1711145440601,-500.0,0.00025753,2]
[320088691,1711145440610,-500.0,0.00025753,2]
[320088692,1711145440619,-500.0,0.00025753,2]
[320088693,1711145440629,-1357.45,0.00025753,2]
[320088694,1711145440638,-500.0,0.00025753,2]
[320088695,1711145440647,-1260.68,0.00025753,2]
[320088696,1711145440656,-500.0,0.00025753,2]
[320088697,1711145440665,-6241.48,0.00025753,2]
[320088698,1711145440674,-521.74,0.00025753,2]
[320088699,1711145440683,-18810.15,0.00025753,2]
[320088700,1711145440692,-500.0,0.00025753,2]
[320088701,1711145440701,-1086.66,0.00025753,2]
[320088702,1711145440710,-1902.18,0.00025753,2]
[320088703,1711145440719,-500.0,0.00025753,2]
[320088704,1711145440728,-500.0,0.00025753,2]
[320088705,1711145440737,-1397.92,0.00025753,2]
[320088706,1711145440748,-500.0,0.00025753,2]
[320088707,1711145440757,-1786.8,0.00025753,2]
[320088708,1711145440765,-536.99,0.00025753,2]
[320088709,1711145440775,-957.76,0.00025753,2]
[320088710,1711145440784,-500.0,0.00025753,2]
[320088711,1711145440793,-500.0,0.00025753,2]
[320088712,1711145440802,-1583.85,0.00025753,2]
[320088713,1711145440811,-290.32762425,0.00025753,2]
[320088714,1711145440821,-500.0,0.00025753,2]
[320088715,1711145440830,-13165.96,0.00025753,2]
[320088716,1711145440839,-2620.09,0.00025753,2]
[320088717,1711145440848,-500.0,0.00025753,2]
[320088718,1711145440857,-1405.42,0.00025753,2]
[320088719,1711145440866,-500.0,0.00025753,2]
[320088720,1711145440875,-15756.22,0.00025753,2]
[320088721,1711145440885,-18132.12,0.00025753,2]
[320088722,1711145440898,-500.0,0.00025753,2]
[320088723,1711145440908,-500.0,0.00025753,2]
[320088724,1711145440916,-500.0,0.00025753,2]
[320088725,1711145440925,-500.0,0.00025753,2]
[320088726,1711145440934,-1587.69,0.00025753,2]
[320088727,1711145440944,-3723.17,0.00025753,2]
[320088728,1711145440953,-1160.65,0.00025753,2]
[320088729,1711145440962,-777.6,0.00025753,2]
[320088730,1711145440975,-500.0,0.00025753,2]
[320088731,1711145440985,-2713.96,0.00025753,2]
[320088732,1711145440997,-500.0,0.00025753,2]
[320088733,1711145441007,-500.0,0.00025753,2]
[320088734,1711145441017,-500.0,0.00025753,2]
[320088735,1711145441027,-500.0,0.00025753,2]
[320088736,1711145441037,-500.0,0.00025753,2]
[320088737,1711145441046,-1154.62,0.00025753,2]
[320088738,1711145441056,-500.0,0.00025753,2]
[320088739,1711145441065,-642.96,0.00025753,2]
[320088740,1711145441074,-3231.54,0.00025753,2]
[320088741,1711145441084,-1176.26,0.00025753,2]
[320088742,1711145441092,-500.0,0.00025753,2]
[320088743,1711145441102,-1289.75,0.00025753,2]
[320088744,1711145441111,-500.0,0.00025753,2]
[320088745,1711145441121,-848.53,0.00025753,2]
[320088746,1711145441130,-1148.0,0.00025753,2]
[320088747,1711145441140,-87708.39085564,0.000258,2]
[320088748,1711145441150,-155.02325349,0.00026,2]
[320088749,1711145441159,-153.0,0.00026027,2]
[320088750,1711145441168,-153.0,0.00026027,2]
[320088751,1711145441178,-153.0,0.00026027,2]
[320088752,1711145441190,-153.0,0.00026027,2]
[320088753,1711145441200,-306.0,0.00026027,2]
[320088754,1711145441210,-153.0,0.00026164,2]
[320088755,1711145441220,-153.0,0.00026164,2]
[320088756,1711145441229,-500.0,0.00026301,2]
[320088757,1711145441238,-500.0,0.00026301,2]
[320088758,1711145441251,-500.0,0.00026301,2]
[320088759,1711145441260,-500.0,0.00026301,2]
[320088760,1711145441269,-500.0,0.00026301,2]
[320088761,1711145441278,-615.78,0.00026301,2]
[320088762,1711145441287,-1113.71,0.00026301,2]
[320088763,1711145441295,-200.83663939,0.00026301,2]
[320088764,1711145441304,-597.6359695,0.00026301,2]
[320088765,1711145441313,-500.0,0.00026301,2]
[320088766,1711145441323,-616.46,0.00026301,2]
[320088767,1711145441331,-877.61,0.00026301,2]
[320088768,1711145441341,-869.73,0.00026301,2]
[320088769,1711145441350,-500.0,0.00026301,2]
[320088770,1711145441359,-595.57,0.00026301,2]
[320088771,1711145441367,-2093.67,0.00026301,2]
[320088772,1711145441376,-500.0,0.00026301,2]
[320088773,1711145441385,-500.0,0.00026301,2]
[320088774,1711145441395,-500.0,0.00026301,2]
[320088775,1711145441404,-500.0,0.00026301,2]
[320088776,1711145441413,-500.0,0.00026301,2]
[320088777,1711145441422,-157.094053,0.00026301,2]
[320088778,1711145441431,-157.094053,0.00026301,2]
[320088779,1711145441440,-500.0,0.00026301,2]
[320088780,1711145441449,-151.0,0.00026301,2]
[320088781,1711145441459,-520.27,0.00026301,2]
[320088782,1711145441468,-500.0,0.00026301,2]
[320088783,1711145441477,-500.0,0.00026301,2]
[320088784,1711145441486,-500.0,0.00026301,2]
[320088785,1711145441497,-500.0,0.00026301,2]
[320088786,1711145441506,-1357.45,0.00026301,2]
[320088787,1711145441515,-500.0,0.00026301,2]
[320088788,1711145441524,-1260.68,0.00026301,2]
[320088789,1711145441533,-500.0,0.00026301,2]
[320088790,1711145441542,-6241.48,0.00026301,2]
[320088791,1711145441551,-521.74,0.00026301,2]
[320088792,1711145441560,-18810.15,0.00026301,2]
[320088793,1711145441569,-500.0,0.00026301,2]
[320088794,1711145441578,-1086.66,0.00026301,2]
[320088795,1711145441587,-1902.18,0.00026301,2]
[320088796,1711145441596,-500.0,0.00026301,2]
[320088797,1711145441605,-500.0,0.00026301,2]